bitfinex/quotes_ETHUSD_20230701
["timestamp","ask_amount","ask_price","bid_price","bid_amount"]
[1688219854497,12.62878623,1925.9,1925.4,15.11678]
[1688219854802,16.16796623,1925.9,1925.4,15.11678]
[1688219854951,3.63052184,1925.8,1925.3,5.19382]
[1688219855152,5.19324,1925.6,1925.4,5.1937]
[1688219858487,15.67059184,1925.6,1924.9,5.19489]
[1688219858690,3.62352184,1925.5,1925.0,10.38951]
[1688219858862,10.38772,1925.4,1925.0,10.38951]
[1688219859888,10.38772,1925.4,1925.0,12.98691]
[1688219860501,5.19386,1925.4,1925.0,12.98691]
[1688219860711,11.99948102,1925.5,1925.0,12.98691]
[1688219861744,1.1999481,1925.4,1925.0,12.98691]
[1688219862005,6.3936981,1925.4,1925.0,12.98691]
[1688219862203,6.3936981,1925.4,1925.0,10.38951]
[1688219862502,6.3936981,1925.4,1925.0,12.98691]
[1688219863095,10.3875,1925.4,1925.0,12.98691]
[1688219863264,10.3875,1925.4,1925.0,10.38951]
[1688219864000,10.3875,1925.4,1924.9,12.5436818]
[1688219864165,12.98436,1925.4,1925.0,5.19476]
[1688219869500,12.98436,1925.4,1925.0,10.38956]
[1688219874405,15.2010052,1925.4,1925.0,10.38956]
[1688219875002,15.2010052,1925.4,1925.0,5.19476]
[1688219878705,15.2010052,1925.4,1925.0,10.38956]
[1688219879214,12.98436,1925.4,1925.0,10.38956]
[1688219879826,0.41831095,1925.5,1925.0,10.38956]
[1688219880131,0.943,1925.7,1925.0,13.92196]
[1688219880132,5.19332,1925.6,1925.0,13.92196]
[1688219880310,10.38663,1925.6,1925.1,1.651]
[1688219880624,10.38663,1925.6,1925.2,10.38826]
[1688219884400,12.98322,1925.6,1925.2,10.38826]
[1688219889842,12.98322,1925.6,1925.2,5.19413]
[1688219896058,15.67074184,1925.6,1925.1,1.66750008]
[1688219896735,15.67074184,1925.6,1925.1,6.86196008]
[1688219896962,1.56707418,1925.5,1925.1,6.86196008]
[1688219897177,10.38754,1925.4,1925.1,12.05649008]
[1688219897477,10.38754,1925.4,1925.1,10.40549008]
[1688219899266,12.9844,1925.4,1925.1,0.01650008]
[1688219899506,12.9844,1925.4,1925.1,5.21101008]
[1688219899704,14.4502,1925.4,1925.1,5.21101008]
[1688219901403,14.4502,1925.4,1925.1,10.40554008]
[1688219901704,5.19355,1925.5,1925.1,13.00280008]
[1688219901903,10.38713,1925.5,1925.1,13.00280008]
[1688219903975,12.98385,1925.5,1925.1,13.00280008]
[1688219905012,12.98385,1925.5,1925.1,10.40554008]
[1688219914111,10.38713,1925.5,1925.1,10.40554008]
[1688219914313,10.38713,1925.5,1925.1,13.00280008]
[1688219914728,5.19355,1925.5,1925.1,14.33133566]
[1688219916842,10.3871,1925.5,1925.1,14.33133566]
[1688219919653,10.3871,1925.5,1925.1,13.00280008]
[1688219920175,10.3871,1925.5,1925.1,0.01650008]
[1688219920385,13.91982,1925.5,1924.9,2.1373]
[1688219920555,1.63,1925.4,1924.9,7.33213]
[1688219920754,5.19413,1925.3,1925.0,5.1948]
[1688219922487,5.19413,1925.3,1925.0,10.3896]
[1688219922852,12.0178,1925.4,1925.0,12.987]
[1688219923196,6.82387,1925.4,1925.0,12.987]
[1688219923392,12.01774,1925.4,1925.0,12.987]
[1688219923886,12.01774,1925.4,1925.0,13.00350094]
[1688219930720,14.6146,1925.4,1925.0,5.21130094]
[1688219931018,13.52048254,1925.4,1925.0,5.1948]
[1688219931924,16.11734254,1925.4,1925.0,10.3896]
[1688219932309,16.11734254,1925.4,1925.0,5.1948]
[1688219933103,16.11734254,1925.4,1925.0,10.3896]
[1688219933497,1.61173425,1925.3,1925.0,10.3896]
[1688219933818,6.80580425,1925.3,1925.0,5.1948]
[1688219933994,6.80580425,1925.3,1925.0,10.3896]
[1688219934793,11.99987425,1925.3,1925.0,10.3896]
[1688219935227,6.80580425,1925.3,1924.9,2.1373]
[1688219935431,5.19407,1925.3,1925.0,5.19475]
[1688219936305,10.38814,1925.3,1925.0,10.38955]
[1688219936501,10.38814,1925.3,1925.0,5.19475]
[1688219938242,12.98513,1925.3,1924.9,10.38988]
[1688219938402,14.446643,1925.3,1924.9,5.19491]
[1688219939944,14.446643,1925.3,1924.9,10.38998]
[1688219940313,14.446643,1925.3,1924.9,5.19491]
[1688219941336,11.849653,1925.3,1924.9,10.38998]
[1688219941509,14.446643,1925.3,1924.9,10.38998]
[1688219941839,14.446643,1925.3,1924.9,5.19491]
[1688219944773,14.446643,1925.3,1924.8,12.05164265]
[1688219948742,14.446643,1925.3,1924.8,13.82027492]
[1688219948959,12.98513,1925.3,1924.8,13.82027492]
[1688219951277,12.98513,1925.3,1924.8,12.05164265]
[1688219952988,13.39178723,1925.3,1924.8,12.05164265]
[1688219962108,13.39178723,1925.3,1924.8,6.85646265]
[1688219962311,13.39178723,1925.3,1924.8,1.66130265]
[1688219962685,13.39178723,1925.3,1924.8,6.85658265]
[1688219962879,1.33917872,1925.2,1924.8,6.85658265]
[1688219963079,5.19458,1925.1,1924.8,6.85658265]
[1688219963281,10.38916,1925.1,1924.8,5.21178265]
[1688219963791,10.38916,1925.1,1924.8,10.40712265]
[1688219964315,10.38916,1925.1,1924.8,5.21178265]
[1688219965518,10.38916,1925.1,1924.8,10.40712265]
[1688219967696,5.19458,1925.1,1924.8,13.00479265]
[1688219968498,10.79036,1925.5,1924.8,15.02868092]
[1688219968695,5.19383,1925.4,1925.0,0.943]
[1688219968901,16.07478184,1925.5,1925.0,11.33241]
[1688219969209,1.60747818,1925.4,1925.0,11.33241]
[1688219969413,6.80120818,1925.4,1925.0,10.38941]
[1688219969705,11.99493818,1925.4,1925.0,10.38941]
[1688219969907,11.99493818,1925.4,1925.0,12.98681]
[1688219975140,13.63043818,1925.4,1925.0,12.98681]
[1688219975325,6.55715382,1925.3,1925.0,12.98681]
[1688219976994,11.75126382,1925.3,1925.0,5.19461]
[1688219980853,11.75126382,1925.3,1925.0,10.38941]
[1688219983549,11.75126382,1925.3,1925.0,5.19461]
[1688219986267,11.75126382,1925.3,1925.0,10.38941]
[1688219986425,10.38822,1925.3,1925.0,10.38941]
[1688219989328,10.38822,1925.3,1925.0,5.19461]
[1688219989930,12.98521,1925.3,1925.0,5.19461]
[1688219993378,12.98521,1925.3,1924.9,12.48286]
[1688219998404,12.98521,1925.3,1924.9,15.08039]
[1688219998568,10.38822,1925.3,1924.9,15.08039]
[1688220000493,14.69855166,1925.3,1924.9,12.48286]
[1688220000657,17.29554166,1925.3,1924.9,12.48286]
[1688220001399,12.01102982,1925.3,1924.9,15.08039]
[1688220001587,10.38822,1925.3,1924.9,15.08039]
[1688220005680,12.98521,1925.3,1924.9,12.48286]
[1688220007676,15.67273184,1925.3,1924.7,5.19544]
[1688220007881,5.19455,1925.1,1924.8,5.19509]
[1688220008082,5.19455,1925.1,1924.8,10.39024]
[1688220008469,10.3891,1925.1,1924.7,7.14163]
[1688220008717,11.856432,1925.1,1924.7,1.9461]
[1688220008871,14.453692,1925.1,1924.7,1.9461]
[1688220009407,11.856432,1925.1,1924.7,1.9461]
[1688220009624,11.856432,1925.1,1924.7,12.33726]
[1688220009775,6.661882,1925.1,1924.7,14.93506]
[1688220009975,12.07588,1925.2,1924.7,14.93506]
[1688220010212,14.76340184,1925.2,1924.7,14.93506]
[1688220011067,17.36053184,1925.2,1924.7,14.93506]
[1688220013819,2.68752184,1925.1,1924.7,5.19555]
[1688220014105,2.68752184,1925.1,1924.6,10.39165]
[1688220014106,12.98712,1925.0,1924.6,10.39165]
[1688220014322,17.66209402,1925.0,1924.6,10.39165]
[1688220015275,18.70206802,1925.0,1924.6,10.39165]
[1688220016111,16.10464802,1925.0,1924.6,12.98959]
[1688220018739,18.70204802,1925.0,1924.6,10.39165]
[1688220018899,18.70204802,1925.0,1924.6,5.19577]
[1688220019809,18.70204802,1925.0,1924.6,10.39165]
[1688220020835,5.19534,1924.8,1924.6,10.39165]
[1688220022013,10.39068,1924.8,1924.6,5.19577]
[1688220023034,10.39068,1924.8,1924.5,12.39050523]
[1688220023328,12.98835,1924.8,1924.5,1.982]
[1688220023539,12.98835,1924.8,1924.3,11.75517076]
[1688220023742,12.98835,1924.8,1924.4,5.19626]
[1688220024714,12.98835,1924.8,1924.4,10.39268]
[1688220025231,10.39068,1924.8,1924.4,10.39268]
[1688220026238,12.01468,1924.8,1924.4,10.39268]
[1688220026636,12.01468,1924.8,1924.4,12.99089]
[1688220028039,12.01468,1924.8,1924.4,10.39268]
[1688220028246,13.475902,1924.8,1924.4,10.39268]
[1688220028543,13.475902,1924.8,1924.4,12.99089]
[1688220029771,16.073572,1924.8,1924.4,12.99089]
[1688220029927,13.475902,1924.8,1924.4,12.99089]
[1688220030748,12.01468,1924.8,1924.4,12.99089]
[1688220039264,10.39068,1924.8,1924.4,12.99089]
[1688220041080,10.39068,1924.8,1924.4,12.89089]
[1688220041440,1.718,1924.9,1924.4,13.82589]
[1688220041679,5.19516,1924.9,1924.4,13.82589]
[1688220042361,5.19516,1924.9,1924.4,12.89089]
[1688220042567,10.39034,1924.9,1924.4,12.89089]
[1688220043257,12.48312758,1924.9,1924.4,12.89089]
[1688220044645,15.08065758,1924.9,1924.4,12.89089]
[1688220045243,15.08065758,1924.9,1924.4,10.29268]
[1688220045985,17.76817942,1924.9,1924.4,10.29268]
[1688220046392,2.68752184,1924.8,1924.3,3.6364]
[1688220046564,12.98935,1924.7,1924.2,0.1]
[1688220046768,3.16752184,1924.6,1924.2,0.1]
[1688220046960,15.5886,1924.5,1924.2,0.1]
[1688220047291,12.99172,1924.3,1924.2,0.1]
[1688220047510,21.59229402,1924.3,1924.2,0.1]
[1688220050694,18.05095402,1924.3,1924.2,0.1]
[1688220052063,20.64929402,1924.3,1924.2,0.1]
[1688220061924,0.941,1924.8,1924.2,0.1]
[1688220062122,1.039974,1925.0,1924.3,2.68752184]
[1688220062421,2.59641,1925.8,1924.5,20.78448]
[1688220062723,10.3866,1925.6,1924.9,12.98727]
[1688220062882,10.3866,1925.6,1924.9,15.61400338]
[1688220063082,5.1933,1925.6,1925.0,2.62673338]
[1688220063287,5.1933,1925.6,1925.1,11.33162]
[1688220063624,10.38644,1925.6,1925.0,7.82141338]
[1688220063778,15.155632,1925.6,1925.0,7.82141338]
[1688220064211,12.559042,1925.6,1925.0,10.38948]
[1688220064413,15.155632,1925.6,1925.0,10.38948]
[1688220065391,2.68752184,1925.5,1925.0,10.38948]
[1688220065593,7.88117184,1925.5,1925.0,10.38948]
[1688220065902,1.52469938,1925.5,1925.0,13.92988]
[1688220066099,5.19348,1925.5,1925.0,13.92988]
[1688220066299,7.365822,1925.6,1925.0,13.92988]
[1688220066506,15.24667384,1925.6,1925.0,13.92988]
[1688220066710,10.05334384,1925.6,1925.0,13.92988]
[1688220066919,15.24665384,1925.6,1925.0,13.92988]
[1688220067092,15.24665384,1925.6,1925.2,10.38828]
[1688220068100,8.92039984,1925.6,1925.2,11.33128]
[1688220069246,8.92039984,1925.6,1925.2,13.92841]
[1688220070304,14.11357984,1925.6,1925.2,13.92841]
[1688220070513,14.11357984,1925.6,1925.2,16.52841]
[1688220071398,14.11357984,1925.6,1925.2,13.93128]
[1688220071943,14.11357984,1925.6,1925.2,12.98828]
[1688220072280,1.039658,1925.6,1925.4,0.943]
[1688220072424,2.59592,1926.1,1925.2,17.3775598]
[1688220072602,2.68752184,1926.0,1925.2,17.3775598]
[1688220072802,5.19251,1925.9,1925.5,12.98355]
[1688220073317,10.38504,1925.9,1925.5,13.91855]
[1688220073848,11.424542,1925.9,1925.5,13.91855]
[1688220074010,11.424542,1925.9,1925.5,12.98355]
[1688220074612,10.38504,1925.9,1925.5,12.98355]
[1688220076148,5.19251,1925.9,1925.5,12.98355]
[1688220076355,11.91927784,1926.0,1925.5,12.98355]
[1688220076518,6.72701784,1926.0,1925.5,12.98355]
[1688220076902,11.91916784,1926.0,1925.5,12.98355]
[1688220077403,17.11131784,1926.0,1925.5,14.376205]
[1688220077601,14.11131784,1926.0,1925.5,14.376205]
[1688220079250,8.91916784,1926.0,1925.5,14.376205]
[1688220079539,8.91916784,1926.0,1925.5,15.314205]
[1688220079540,1.039496,1926.0,1925.5,15.314205]
[1688220079749,0.54061979,1926.1,1925.5,15.314205]
[1688220079750,3.54061979,1926.1,1925.7,15.57837]
[1688220079978,5.8163698,1926.1,1925.7,15.57837]
[1688220080784,12.0476578,1926.1,1925.7,15.57837]
[1688220081474,12.0476578,1926.1,1925.7,17.03778575]
[1688220081986,3.8557978,1926.1,1925.7,14.44136575]
[1688220082189,9.0476978,1926.1,1925.7,14.44136575]
[1688220083708,3.8557978,1926.1,1925.7,14.44136575]
[1688220083919,0.12884796,1926.1,1925.7,14.44136575]
[1688220084065,0.12884796,1926.1,1925.9,10.38474]
[1688220085683,0.12884796,1926.1,1925.9,12.98092]
[1688220088775,0.40908395,1926.3,1925.9,12.98092]
[1688220089088,2.68752184,1926.3,1925.9,12.98092]
[1688220090882,7.87885184,1926.3,1925.9,12.98092]
[1688220091898,2.68752184,1926.2,1925.9,12.98092]
[1688220092131,8.66707702,1926.2,1925.9,10.38474]
[1688220093833,14.80174702,1926.2,1925.7,2.6]
[1688220093991,14.80174702,1926.2,1925.7,7.79287]
[1688220093992,5.19237,1925.9,1925.7,7.79287]
[1688220094189,7.87989184,1925.9,1925.7,7.79287]
[1688220094391,13.07226184,1925.9,1925.7,2.6]
[1688220095095,7.88016184,1925.8,1925.7,2.6]
[1688220095328,2.68752184,1925.8,1925.7,2.6]
[1688220095492,7.88016184,1925.8,1925.7,2.6]
[1688220095893,2.68752184,1925.8,1925.7,2.6]
[1688220096101,2.68752184,1925.8,1925.7,7.79291]
[1688220096638,2.68752184,1925.8,1925.7,2.6]
[1688220097127,13.07280184,1925.8,1925.7,2.6]
[1688220097334,17.40213624,1925.8,1925.7,2.6]
[1688220097534,21.82513624,1925.8,1925.7,2.6]
[1688220103423,27.51777624,1925.8,1925.7,2.6]
[1688220107454,27.51777624,1925.8,1924.9,3.6126]
[1688220107672,0.943,1925.5,1924.9,3.6126]
[1688220107836,18.26934184,1925.4,1924.9,4.586882]
[1688220108968,19.30915284,1925.4,1924.9,4.586882]
[1688220110933,19.30915284,1925.4,1924.9,3.6126]
[1688220111876,3.72733284,1925.4,1924.9,3.6126]
[1688220112070,19.30915284,1925.4,1924.9,3.6126]
[1688220115383,19.30915284,1925.4,1924.9,6.2126]
[1688220116879,19.30915284,1925.4,1924.9,3.6126]
[1688220117897,19.30915284,1925.4,1924.9,8.80764]
[1688220121365,21.75941712,1925.4,1924.9,8.80764]
[1688220122063,21.75941712,1925.4,1924.9,3.6126]
[1688220122372,21.75941712,1925.4,1924.9,8.80763]
[1688220122912,22.16914688,1925.4,1924.9,8.80763]
[1688220123660,22.16914688,1925.4,1924.9,14.0027]
[1688220123893,19.57217688,1925.4,1924.9,8.80763]
[1688220126592,19.57217688,1925.4,1924.9,14.0027]
[1688220126904,19.57217688,1925.4,1924.9,8.80763]
[1688220128199,19.57217688,1925.4,1924.9,14.0027]
[1688220129670,19.57217688,1925.4,1924.9,8.80763]
[1688220129981,19.57217688,1925.4,1924.9,3.6126]
[1688220130175,12.98577,1925.2,1924.9,3.6126]
[1688220130884,12.98577,1925.2,1924.9,2.023]
[1688220133389,12.98577,1925.2,1924.9,7.21807]
[1688220138901,15.67329184,1925.2,1924.9,2.023]
[1688220139119,5.1948,1925.0,1924.9,2.023]
[1688220139309,12.987,1925.0,1924.7,1.5291]
[1688220139509,12.987,1925.0,1924.6,2.0375]
[1688220139965,15.67452184,1925.0,1924.6,2.0375]
[1688220140239,4.25497402,1924.9,1924.6,2.0375]
[1688220140393,12.98835,1924.8,1924.6,2.0375]
[1688220140595,15.67587184,1924.8,1924.5,0.943]
[1688220141533,15.67587184,1924.8,1924.5,6.13914]
[1688220141729,7.88286184,1924.8,1924.5,11.33529]
[1688220141891,7.88286184,1924.8,1924.5,13.93336]
[1688220142093,2.68752184,1924.8,1924.5,13.93336]
[1688220143623,7.88288184,1924.8,1924.5,13.93336]
[1688220143829,7.88287184,1924.8,1924.5,13.93336]
[1688220145093,1.9625,1925.1,1924.5,13.93336]
[1688220145299,2.68752184,1925.0,1924.6,0.937]
[1688220145501,13.07745184,1925.0,1924.7,5.19556]
[1688220146403,15.67485184,1925.0,1924.7,5.19556]
[1688220147018,15.67485184,1925.0,1924.6,13.35812]
[1688220147222,17.50206302,1925.0,1924.6,13.35812]
[1688220147449,17.50206302,1925.0,1924.6,8.16236]
[1688220150055,17.50206302,1925.0,1924.6,2.9667]
[1688220150359,17.50206302,1925.0,1924.6,8.16255]
[1688220150507,17.50206302,1925.0,1924.6,2.9667]
[1688220150850,1.7502063,1924.9,1924.6,2.9667]
[1688220151025,10.39068,1924.8,1924.6,2.9667]
[1688220151621,10.39068,1924.8,1924.6,8.16256]
[1688220151828,10.39068,1924.8,1924.6,6.13286]
[1688220152451,10.39068,1924.8,1924.5,11.32896]
[1688220153009,5.19534,1924.8,1924.5,11.32896]
[1688220153647,5.19534,1924.8,1924.5,13.92703]
[1688220154226,14.82819814,1924.9,1924.5,13.92703]
[1688220157477,6.67821981,1924.8,1924.5,12.99003]
[1688220157832,11.87361981,1924.8,1924.5,12.99003]
[1688220158991,6.67821981,1924.8,1924.5,12.99003]
[1688220159172,11.87372981,1924.8,1924.5,5.19594]
[1688220160279,11.87372981,1924.8,1924.5,12.99016]
[1688220160280,6.67816981,1924.8,1924.5,12.99016]
[1688220160756,6.67816981,1924.8,1924.5,10.39209]
[1688220161256,11.87351981,1924.8,1924.5,5.19594]
[1688220161853,14.47118981,1924.8,1924.4,5.19623]
[1688220162304,11.87351981,1924.8,1924.4,10.39265]
[1688220162590,14.47118981,1924.8,1924.4,5.19623]
[1688220163467,14.47118981,1924.8,1924.4,10.39265]
[1688220163892,14.47118981,1924.8,1924.4,5.19623]
[1688220164701,2.68752184,1924.9,1924.5,11.33513]
[1688220164702,7.88270184,1924.9,1924.5,11.33513]
[1688220164902,5.19545,1924.8,1924.5,6.13898]
[1688220165061,5.19545,1924.8,1924.6,0.937]
[1688220165262,5.19545,1924.8,1924.6,6.13285]
[1688220165454,5.19545,1924.8,1924.6,0.937]
[1688220165455,10.3909,1924.8,1924.6,0.937]
[1688220172413,10.3909,1924.8,1924.6,5.19585]
[1688220172597,7.31364306,1925.1,1924.6,15.058153]
[1688220172801,5.60504306,1925.1,1924.6,15.058153]
[1688220172976,13.39700306,1925.1,1924.6,15.058153]
[1688220173380,13.39700306,1925.1,1924.6,14.444113]
[1688220173686,2.68752184,1925.0,1924.6,2.9189]
[1688220173890,2.68752184,1925.0,1924.6,1.9839]
[1688220173891,12.9878,1924.9,1924.6,1.9839]
[1688220178131,2.68752184,1924.8,1924.4,0.935]
[1688220178333,12.98915,1924.7,1924.3,7.21298]
[1688220178497,17.58052402,1924.7,1924.3,7.21298]
[1688220178694,17.58052402,1924.7,1924.3,12.40967]
[1688220179592,14.98269402,1924.7,1924.3,12.40967]
[1688220179799,9.78703402,1924.7,1924.3,15.00801]
[1688220180038,14.98269402,1924.7,1924.3,15.00801]
[1688220181030,17.58049402,1924.7,1924.3,12.40967]
[1688220186863,17.58049402,1924.7,1924.3,15.00801]
[1688220187180,14.98269402,1924.7,1924.3,15.00801]
[1688220187674,17.58049402,1924.7,1924.3,12.40967]
[1688220188748,14.98269402,1924.7,1924.3,15.00801]
[1688220189277,1.4982694,1924.6,1924.3,10.39332]
[1688220189482,6.6942494,1924.6,1924.3,10.39332]
[1688220189848,1.4982694,1924.6,1924.3,10.39332]
[1688220190046,11.8901294,1924.6,1924.3,5.19663]
[1688220190264,11.8901294,1924.6,1924.2,12.5386478]
[1688220190446,11.8901294,1924.6,1924.3,5.19669]
[1688220190649,6.6941494,1924.6,1924.3,10.39338]
[1688220191238,11.8900294,1924.6,1924.3,5.19669]
[1688220191548,6.6941494,1924.6,1924.3,10.39338]
[1688220191770,11.8900294,1924.6,1924.3,10.39338]
[1688220194418,11.8900294,1924.6,1924.3,5.19669]
[1688220194720,1.18900294,1924.5,1924.2,7.32531]
[1688220194919,14.26907478,1924.5,1924.2,7.32531]
[1688220195231,2.68752184,1924.4,1924.2,0.1]
[1688220195427,10.39338,1924.3,1924.2,0.1]
[1688220195730,11.96129418,1924.3,1924.2,0.1]
[1688220195896,6.76460418,1924.3,1924.2,0.1]
[1688220196089,11.96129418,1924.3,1924.2,0.1]
[1688220196288,6.76460418,1924.3,1924.2,0.1]
[1688220197211,6.76460418,1924.3,1924.2,5.29696]
[1688220197602,6.76460418,1924.3,1924.2,0.1]
[1688220198739,11.96129418,1924.3,1924.2,0.1]
[1688220204466,10.39338,1924.3,1924.2,0.1]
[1688220211447,5.19669,1924.3,1924.2,0.1]
[1688220213607,5.1965,1924.4,1924.2,10.49392]
[1688220214595,5.1965,1924.4,1924.2,5.29696]
[1688220214774,10.393,1924.4,1924.2,0.1]
[1688220214943,6.23599,1924.3,1924.2,0.1]
[1688220215380,14.12020184,1924.3,1924.2,0.1]
[1688220215587,16.71854184,1924.3,1924.2,0.1]
[1688220223373,19.71854184,1924.3,1924.2,0.1]
[1688220223908,21.64154184,1924.3,1924.2,0.1]
[1688220226438,22.05769142,1924.3,1924.2,0.1]
[1688220233467,27.25438142,1924.3,1924.2,0.1]
[1688220235829,27.25438142,1924.3,1923.9,0.1]
[1688220236029,34.37253184,1924.0,1923.9,0.1]
[1688220236228,37.85253184,1924.0,1923.9,0.1]
[1688220236657,19.66127184,1924.0,1923.9,0.1]
[1688220240450,20.60427184,1924.0,1923.9,0.1]
[1688220244566,21.01759537,1924.0,1923.9,0.1]
[1688220244767,23.23811741,1924.0,1923.9,0.1]
[1688220245550,22.29511741,1924.0,1923.9,0.1]
[1688220249297,21.79511741,1924.0,1923.9,0.1]
[1688220249475,3.10084537,1924.0,1923.9,0.1]
[1688220249863,4.43866,1924.3,1923.9,10.49554]
[1688220249864,5.19687,1924.3,1923.9,10.49554]
[1688220250177,2.68752184,1924.2,1923.9,10.51205037]
[1688220250490,7.88452184,1924.2,1923.9,10.51205037]
[1688220251085,13.08152184,1924.2,1923.9,5.31428037]
[1688220252162,3.0,1924.1,1923.9,5.31428037]
[1688220252482,8.19736,1924.1,1923.9,6.25028037]
[1688220254316,0.41147328,1924.4,1923.9,12.80273641]
[1688220254474,2.68752184,1924.3,1924.1,0.938]
[1688220254674,2.68752184,1924.3,1924.1,6.1352]
[1688220254997,2.68752184,1924.3,1924.1,11.33243]
[1688220255826,7.88422184,1924.3,1924.1,11.33243]
[1688220265227,10.15514992,1924.5,1924.1,11.33243]
[1688220265559,10.15514992,1924.5,1924.2,0.935]
[1688220265560,3.0,1924.4,1924.2,0.935]
[1688220265738,4.14641176,1924.5,1924.3,5.19669]
[1688220265949,0.41860392,1924.5,1924.4,0.943]
[1688220266255,0.13262178,1924.7,1924.4,13.93405]
[1688220266410,5.19562,1924.7,1924.5,6.13896]
[1688220266813,10.39124,1924.7,1924.5,6.13896]
[1688220267459,3.0,1924.6,1924.5,6.13896]
[1688220267757,8.19588,1924.6,1924.5,6.13896]
[1688220269685,8.19588,1924.6,1924.5,0.943]
[1688220270868,20.12038764,1924.6,1924.4,0.936]
[1688220271174,2.68752184,1924.5,1924.2,6.13495]
[1688220271360,5.19642,1924.4,1924.2,6.13495]
[1688220271850,13.08007184,1924.5,1924.2,6.13495]
[1688220272051,7.88374184,1924.5,1924.2,6.13495]
[1688220272974,7.88374184,1924.5,1924.2,11.33191]
[1688220273899,14.7920816,1924.5,1924.2,11.33191]
[1688220274602,6.235898,1924.7,1924.3,0.939]
[1688220274805,2.68752184,1924.6,1924.3,0.939]
[1688220275081,2.68752184,1924.6,1924.4,10.39284]
[1688220276212,7.88345184,1924.6,1924.4,10.39284]
[1688220276625,1.040158,1924.7,1924.4,12.99105]
[1688220276789,0.41858382,1924.8,1924.4,13.59634416]
[1688220276996,3.10610566,1924.8,1924.4,13.59634416]
[1688220277197,7.88289184,1924.8,1924.4,13.59634416]
[1688220280018,6.65174439,1924.9,1924.4,13.59634416]
[1688220280019,1.45664439,1924.9,1924.5,1.35963442]
[1688220280193,0.41653839,1924.9,1924.7,0.939]
[1688220280391,0.41653839,1924.9,1924.8,10.39068]
[1688220280605,10.38974,1925.0,1924.8,10.39068]
[1688220280793,2.68752184,1924.9,1924.7,0.939]
[1688220280993,5.19534,1924.8,1924.7,0.939]
[1688220281182,5.19534,1924.8,1924.7,5.19561]
[1688220281183,2.68752184,1924.8,1924.7,5.19561]
[1688220282016,7.88286184,1924.8,1924.7,5.19561]
[1688220284249,2.68752184,1924.8,1924.7,5.19561]
[1688220284654,4.09933732,1924.8,1924.7,5.19561]
[1688220287316,17.08768732,1924.8,1924.3,0.943]
[1688220287517,17.08768732,1924.8,1924.3,12.45276]
[1688220287518,2.68752184,1924.7,1924.3,12.45276]
[1688220287839,9.57467184,1924.7,1924.3,15.0511]
[1688220288046,11.19285457,1924.7,1924.3,15.0511]
[1688220288716,5.99720457,1924.7,1924.3,15.0511]
[1688220289820,4.30570457,1924.7,1924.3,15.9891]
[1688220290052,2.68752184,1924.7,1924.3,15.9891]
[1688220291653,2.68752184,1924.7,1924.4,0.943]
[1688220291865,2.68752184,1924.7,1924.5,10.3923]
[1688220293024,2.68752184,1924.7,1924.5,13.92537]
[1688220293622,0.41678479,1924.8,1924.5,13.92537]
[1688220293823,3.10430663,1924.8,1924.6,0.943]
[1688220294034,2.68752184,1924.8,1924.7,10.39122]
[1688220297029,0.40616003,1924.9,1924.7,13.92802]
[1688220297266,0.40616003,1924.9,1924.7,12.98902]
[1688220297420,1.6671,1925.1,1924.7,12.98902]
[1688220297736,2.68752184,1925.0,1924.7,16.61382]
[1688220297922,2.68752184,1925.0,1924.7,15.09432]
[1688220298560,7.88232184,1925.0,1924.7,15.09432]
[1688220300452,2.68752184,1925.0,1924.7,15.09432]
[1688220301657,7.88239184,1925.0,1924.7,15.09432]
[1688220306055,4.45015004,1925.1,1924.7,17.89369544]
[1688220306284,0.41015104,1925.1,1924.8,0.939]
[1688220306578,3.0,1925.3,1924.9,12.98767]
[1688220306753,5.68752184,1925.3,1924.9,12.98767]
[1688220306961,2.68752184,1925.3,1924.9,14.380337]
[1688220307281,3.72737884,1925.3,1924.9,14.380337]
[1688220307597,3.72737884,1925.3,1925.1,10.38906]
[1688220308095,2.68752184,1925.3,1925.1,10.38906]
[1688220313889,1.46178232,1925.4,1925.1,12.98632]
[1688220314090,9.34306416,1925.4,1925.1,12.98632]
[1688220316480,9.34306416,1925.4,1925.1,10.38906]
[1688220318172,14.53682416,1925.4,1925.1,10.38906]
[1688220318907,9.34306416,1925.4,1925.1,10.38906]
[1688220319615,9.34306416,1925.4,1925.1,12.98632]
[1688220319775,8.30325416,1925.4,1925.1,12.98632]
[1688220320418,3.10949416,1925.4,1925.1,12.98632]
[1688220323821,0.42197232,1925.4,1925.1,15.24086176]
[1688220324027,0.12980841,1925.5,1925.3,0.943]
[1688220324198,1.6436,1925.8,1925.3,13.92797]
[1688220324420,0.12991662,1925.6,1925.3,13.92797]
[1688220324622,4.33112184,1925.8,1925.5,5.1934]
[1688220324950,2.68752184,1925.8,1925.5,10.38685]
[1688220326855,11.29792826,1925.9,1925.5,13.00006666]
[1688220326856,1.46195826,1925.9,1925.5,13.00006666]
[1688220327052,0.42238826,1925.9,1925.5,13.00006666]
[1688220327350,10.38475,1925.9,1925.5,15.07912133]
[1688220327531,10.38475,1925.9,1925.5,13.00006666]
[1688220327731,13.07227184,1925.9,1925.5,13.00006666]
[1688220328130,14.69157184,1925.9,1925.5,13.00006666]
[1688220329951,9.49919184,1925.9,1925.5,13.00006666]
[1688220330148,4.30682184,1925.9,1925.5,13.00006666]
[1688220330349,4.30682184,1925.9,1925.5,13.89428449]
[1688220330741,2.68752184,1925.9,1925.5,14.82928449]
[1688220330941,1.17094019,1926.0,1925.6,0.943]
[1688220331161,0.13142719,1926.0,1925.7,12.98215]
[1688220332326,5.32354719,1926.0,1925.7,12.98215]
[1688220333674,5.32354719,1926.0,1925.7,10.38572]
[1688220333965,5.32354719,1926.0,1925.7,12.98217]
[1688220335239,0.13142719,1926.0,1925.7,12.98217]
[1688220335438,0.13142719,1926.0,1925.7,14.651347]
[1688220335642,0.13142719,1926.0,1925.7,14.66784194]
[1688220338543,1.6397,1926.3,1925.7,14.66784194]
[1688220338764,0.12955617,1926.1,1925.8,0.943]